[Event "*** Titled Tuesday Blitz"]
[Site "Chess.com"]
[Date "2020.05.26"]
[Round "2"]
[White "moistketchup"]
[Black "Makswolf200817"]
[Result "0-1"]
[WhiteElo "2125"]
[BlackElo "2406"]
[TimeControl "180+1"]
[EndTime "10:17:20 PDT"]
[Termination "Makswolf200817 won on time"]

1. Nf3 {[%clk 0:03:00.9]} 1... d5 {[%clk 0:02:58.3]} 2. g3 {[%clk 0:02:58.4]}
2... Nf6 {[%clk 0:02:57.7]} 3. Bg2 {[%clk 0:02:55.2]} 3... Bf5 {[%clk
0:02:56.8]} 4. O-O {[%clk 0:02:53.8]} 4... c6 {[%clk 0:02:56.3]} 5. d4 {[%clk
0:02:51.7]} 5... e6 {[%clk 0:02:55.4]} 6. b3 {[%clk 0:02:37.6]} 6... Nbd7 {[%clk
0:02:53.3]} 7. c4 {[%clk 0:02:28.5]} 7... h6 {[%clk 0:02:44.7]} 8. Nc3 {[%clk
0:02:24.4]} 8... Bb4 {[%clk 0:02:33.9]} 9. Bb2 {[%clk 0:02:23.5]} 9... O-O
{[%clk 0:02:33.3]} 10. Nh4 {[%clk 0:02:06.1]} 10... Bh7 {[%clk 0:02:31.4]} 11.
a3 {[%clk 0:02:05.5]} 11... Bxc3 {[%clk 0:02:19.6]} 12. Bxc3 {[%clk 0:02:06.4]}
12... Ne4 {[%clk 0:02:18.8]} 13. Bb2 {[%clk 0:01:59.9]} 13... b5 {[%clk
0:01:58]} 14. f3 {[%clk 0:01:46.5]} 14... Nef6 {[%clk 0:01:53.9]} 15. f4 {[%clk
0:01:08.5]} 15... bxc4 {[%clk 0:01:31.9]} 16. bxc4 {[%clk 0:01:09.4]} 16... Qa5
{[%clk 0:01:29.7]} 17. f5 {[%clk 0:01:03.4]} 17... Rab8 {[%clk 0:01:15.7]} 18.
Qc2 {[%clk 0:00:57.1]} 18... dxc4 {[%clk 0:00:53]} 19. Bc3 {[%clk 0:00:48.4]}
19... Qa6 {[%clk 0:00:44.9]} 20. e4 {[%clk 0:00:45.5]} 20... Rfe8 {[%clk
0:00:38.4]} 21. Kh1 {[%clk 0:00:17.8]} 21... Rb3 {[%clk 0:00:28.6]} 22. Bb4
{[%clk 0:00:14.8]} 22... Ng4 {[%clk 0:00:21.4]} 23. Rfc1 {[%clk 0:00:07.3]}
23... Ne3 {[%clk 0:00:20.1]} 24. Qe2 {[%clk 0:00:07.1]} 24... exf5 {[%clk
0:00:19.1]} 25. e5 {[%clk 0:00:03.3]} 25... Nf8 {[%clk 0:00:14.6]} 26. Bf3
{[%clk 0:00:02.8]} 26... Ne6 {[%clk 0:00:13.4]} 0-1

[Event "*** Titled Tuesday Blitz"]
[Site "Chess.com"]
[Date "2020.05.26"]
[Round "2"]
[White "Rozum_Ivan"]
[Black "Bhagya_2312"]
[Result "1-0"]
[WhiteElo "2613"]
[BlackElo "2104"]
[TimeControl "180+1"]
[EndTime "10:17:21 PDT"]
[Termination "Rozum_Ivan won on time"]

1. d4 {[%clk 0:02:48]} 1... d5 {[%clk 0:02:58.8]} 2. Nf3 {[%clk 0:02:48]} 2...
Nf6 {[%clk 0:02:58.2]} 3. c4 {[%clk 0:02:46.6]} 3... e6 {[%clk 0:02:58.2]} 4. g3
{[%clk 0:02:45.9]} 4... Bb4+ {[%clk 0:02:57]} 5. Bd2 {[%clk 0:02:45.4]} 5... Be7
{[%clk 0:02:56.6]} 6. Bg2 {[%clk 0:02:45.8]} 6... O-O {[%clk 0:02:56.5]} 7. O-O
{[%clk 0:02:46.1]} 7... Nbd7 {[%clk 0:02:55.6]} 8. Qc2 {[%clk 0:02:46]} 8... c6
{[%clk 0:02:55.2]} 9. Rd1 {[%clk 0:02:45.3]} 9... b6 {[%clk 0:02:55.1]} 10. Bf4
{[%clk 0:02:44.4]} 10... Ba6 {[%clk 0:02:51.2]} 11. cxd5 {[%clk 0:02:42]} 11...
cxd5 {[%clk 0:02:48.3]} 12. Ne5 {[%clk 0:02:42.1]} 12... Bb7 {[%clk 0:02:40]}
13. Nc6 {[%clk 0:02:40.8]} 13... Bxc6 {[%clk 0:02:35.5]} 14. Qxc6 {[%clk
0:02:41.7]} 14... Rc8 {[%clk 0:02:34.5]} 15. Qb5 {[%clk 0:02:41]} 15... Ne4
{[%clk 0:02:26.9]} 16. Qd3 {[%clk 0:02:32.4]} 16... Ndf6 {[%clk 0:02:24.6]} 17.
f3 {[%clk 0:02:29.8]} 17... Nd6 {[%clk 0:02:23]} 18. e4 {[%clk 0:02:27.4]} 18...
Nc4 {[%clk 0:02:19.3]} 19. Qe2 {[%clk 0:02:24.8]} 19... b5 {[%clk 0:02:10.8]}
20. e5 {[%clk 0:02:14.2]} 20... Nd7 {[%clk 0:01:53.7]} 21. Bc1 {[%clk
0:02:13.9]} 21... a6 {[%clk 0:01:51.6]} 22. f4 {[%clk 0:02:13.3]} 22... g6
{[%clk 0:01:47.7]} 23. b3 {[%clk 0:02:12.9]} 23... Ncb6 {[%clk 0:01:46]} 24. Bb2
{[%clk 0:02:07.9]} 24... Nb8 {[%clk 0:01:30.9]} 25. Nd2 {[%clk 0:02:05.8]} 25...
Rc2 {[%clk 0:01:27.2]} 26. Rab1 {[%clk 0:01:57.5]} 26... Bb4 {[%clk 0:01:15.4]}
27. Qe3 {[%clk 0:01:43.9]} 27... Qe7 {[%clk 0:01:03.2]} 28. Bf1 {[%clk
0:01:42.6]} 28... Rfc8 {[%clk 0:01:00.5]} 29. Bd3 {[%clk 0:01:41.6]} 29... Rxd2
{[%clk 0:00:59.4]} 30. Rxd2 {[%clk 0:01:42.5]} 30... Bxd2 {[%clk 0:00:56.9]} 31.
Qxd2 {[%clk 0:01:43.4]} 31... b4 {[%clk 0:00:44.4]} 32. Qf2 {[%clk 0:01:36.5]}
32... a5 {[%clk 0:00:42.6]} 33. g4 {[%clk 0:01:33.8]} 33... f5 {[%clk
0:00:26.1]} 34. exf6 {[%clk 0:01:31.5]} 34... Qxf6 {[%clk 0:00:25.4]} 35. Rf1
{[%clk 0:01:22.8]} 35... N8d7 {[%clk 0:00:19.6]} 36. Kh1 {[%clk 0:01:21.6]}
36... a4 {[%clk 0:00:14]} 37. Qe3 {[%clk 0:01:17]} 37... a3 {[%clk 0:00:11.1]}
38. Bc1 {[%clk 0:01:16.9]} 38... Nf8 {[%clk 0:00:09.2]} 39. Bd2 {[%clk 0:01:17]}
39... Qe7 {[%clk 0:00:08]} 40. f5 {[%clk 0:01:13.1]} 40... gxf5 {[%clk
0:00:06.5]} 41. gxf5 {[%clk 0:01:14]} 41... Kh8 {[%clk 0:00:06.6]} 42. f6 {[%clk
0:01:12.8]} 42... Qf7 {[%clk 0:00:06.2]} 43. Bxb4 {[%clk 0:01:11.2]} 43... Ng6
{[%clk 0:00:05.7]} 44. Bxa3 {[%clk 0:01:09.9]} 44... Nd7 {[%clk 0:00:02.5]} 45.
Bd6 {[%clk 0:01:05.1]} 1-0

[Event "*** Titled Tuesday Blitz"]
[Site "Chess.com"]
[Date "2020.05.26"]
[Round "2"]
[White "Zakaryan_David"]
[Black "narutosmith"]
[Result "1-0"]
[WhiteElo "2495"]
[BlackElo "2273"]
[TimeControl "180+1"]
[EndTime "10:17:22 PDT"]
[Termination "Zakaryan_David won on time"]

1. d4 {[%clk 0:02:54]} 1... Nf6 {[%clk 0:02:59.5]} 2. c4 {[%clk 0:02:52.6]} 2...
e6 {[%clk 0:02:59.2]} 3. Nf3 {[%clk 0:02:52.2]} 3... Bb4+ {[%clk 0:02:59]} 4.
Bd2 {[%clk 0:02:52.1]} 4... a5 {[%clk 0:02:59.1]} 5. g3 {[%clk 0:02:51.8]} 5...
d6 {[%clk 0:02:59]} 6. Bg2 {[%clk 0:02:51.9]} 6... Nbd7 {[%clk 0:02:59]} 7. O-O
{[%clk 0:02:52.8]} 7... e5 {[%clk 0:02:58.6]} 8. Nc3 {[%clk 0:02:03.6]} 8... O-O
{[%clk 0:02:55.1]} 9. Qc2 {[%clk 0:01:53.6]} 9... Re8 {[%clk 0:02:46]} 10. dxe5
{[%clk 0:01:53.7]} 10... dxe5 {[%clk 0:02:38.2]} 11. Rfd1 {[%clk 0:01:53]} 11...
c6 {[%clk 0:02:29.9]} 12. Ne4 {[%clk 0:01:29.9]} 12... Nxe4 {[%clk 0:02:16]} 13.
Qxe4 {[%clk 0:01:28.1]} 13... Nc5 {[%clk 0:01:56]} 14. Qc2 {[%clk 0:01:24]}
14... Bxd2 {[%clk 0:01:50.1]} 15. Rxd2 {[%clk 0:01:24.9]} 15... Qc7 {[%clk
0:01:43.9]} 16. Ng5 {[%clk 0:01:21]} 16... g6 {[%clk 0:01:40.7]} 17. Rad1 {[%clk
0:01:20.7]} 17... h6 {[%clk 0:01:26.8]} 18. Nf3 {[%clk 0:01:14.1]} 18... Bf5
{[%clk 0:01:20.7]} 19. Qc1 {[%clk 0:01:14.4]} 19... a4 {[%clk 0:01:04.9]} 20.
Rd6 {[%clk 0:01:12.8]} 20... Ne4 {[%clk 0:00:51.3]} 21. R6d3 {[%clk 0:01:09.5]}
21... Qb6 {[%clk 0:00:48.4]} 22. c5 {[%clk 0:00:48.7]} 22... Nxc5 {[%clk
0:00:41]} 23. Qxh6 {[%clk 0:00:48.8]} 23... Ne6 {[%clk 0:00:18.4]} 24. Rd6
{[%clk 0:00:43.9]} 24... e4 {[%clk 0:00:13.6]} 25. Nh4 {[%clk 0:00:38.5]} 25...
Qxb2 {[%clk 0:00:12.3]} 26. Rd7 {[%clk 0:00:27.6]} 26... Qg7 {[%clk 0:00:06.1]}
27. Nxf5 {[%clk 0:00:24.4]} 27... gxf5 {[%clk 0:00:05.4]} 28. Qh3 {[%clk
0:00:20.7]} 28... Qb2 {[%clk 0:00:01.6]} 29. Qxf5 {[%clk 0:00:19.8]} 1-0

[Event "*** Titled Tuesday Blitz"]
[Site "Chess.com"]
[Date "2020.05.26"]
[Round "2"]
[White "manuellarrea"]
[Black "sergeikim"]
[Result "0-1"]
[WhiteElo "2160"]
[BlackElo "2412"]
[TimeControl "180+1"]
[EndTime "10:17:22 PDT"]
[Termination "sergeikim won on time"]

1. e4 {[%clk 0:03:00.9]} 1... e5 {[%clk 0:02:59.6]} 2. Nf3 {[%clk 0:03:00.7]}
2... Nc6 {[%clk 0:02:59.6]} 3. Bc4 {[%clk 0:03:00.9]} 3... Bc5 {[%clk
0:02:57.6]} 4. c3 {[%clk 0:03:00]} 4... Nf6 {[%clk 0:02:57.2]} 5. d3 {[%clk
0:02:55.9]} 5... d6 {[%clk 0:02:55.6]} 6. O-O {[%clk 0:02:55.3]} 6... O-O {[%clk
0:02:54.2]} 7. Re1 {[%clk 0:02:50.8]} 7... a6 {[%clk 0:02:53.7]} 8. a4 {[%clk
0:02:49.4]} 8... Ba7 {[%clk 0:02:52.9]} 9. h3 {[%clk 0:02:48.1]} 9... Nh5 {[%clk
0:02:48.8]} 10. b4 {[%clk 0:02:43.3]} 10... Qf6 {[%clk 0:02:46.7]} 11. Be3
{[%clk 0:02:32.4]} 11... Nf4 {[%clk 0:02:44.6]} 12. Bxf4 {[%clk 0:02:30.9]}
12... Qxf4 {[%clk 0:02:43.3]} 13. Nbd2 {[%clk 0:02:26.6]} 13... Ne7 {[%clk
0:02:41.5]} 14. Nf1 {[%clk 0:02:17.1]} 14... Ng6 {[%clk 0:02:41.1]} 15. Ne3
{[%clk 0:02:15.2]} 15... Qf6 {[%clk 0:02:31.4]} 16. Kh2 {[%clk 0:02:01]} 16...
c6 {[%clk 0:02:29.4]} 17. Ra2 {[%clk 0:01:49.8]} 17... Nf4 {[%clk 0:02:25.8]}
18. Ng1 {[%clk 0:01:43.6]} 18... Be6 {[%clk 0:02:15.2]} 19. g3 {[%clk
0:01:33.4]} 19... Ng6 {[%clk 0:02:13.5]} 20. Qf3 {[%clk 0:01:28.3]} 20... Qg5
{[%clk 0:02:09.9]} 21. Bxe6 {[%clk 0:01:11.5]} 21... fxe6 {[%clk 0:02:08.8]} 22.
Qg4 {[%clk 0:01:11]} 22... Qe7 {[%clk 0:01:54.3]} 23. b5 {[%clk 0:00:55.2]}
23... Rf6 {[%clk 0:01:51.4]} 24. Kg2 {[%clk 0:00:47.6]} 24... Raf8 {[%clk
0:01:49.1]} 25. bxa6 {[%clk 0:00:41.3]} 25... bxa6 {[%clk 0:01:48.2]} 26. h4
{[%clk 0:00:32.1]} 26... Nf4+ {[%clk 0:01:34.2]} 27. gxf4 {[%clk 0:00:20.5]}
27... exf4 {[%clk 0:01:33.5]} 28. Nc4 {[%clk 0:00:12.5]} 28... Rg6 {[%clk
0:01:32.6]} 29. Qxg6 {[%clk 0:00:11.7]} 29... hxg6 {[%clk 0:01:32.2]} 30. Nf3
{[%clk 0:00:11.8]} 30... e5 {[%clk 0:01:25.6]} 31. Rb2 {[%clk 0:00:10.4]} 31...
Qd7 {[%clk 0:01:23.6]} 32. Kf1 {[%clk 0:00:09]} 32... Bc5 {[%clk 0:01:12.4]} 33.
Ke2 {[%clk 0:00:08.4]} 33... Qc7 {[%clk 0:01:03.5]} 34. Reb1 {[%clk 0:00:07.4]}
34... Qd7 {[%clk 0:01:02.9]} 35. Rb7 {[%clk 0:00:05.9]} 35... Qh3 {[%clk
0:01:00.8]} 36. Rb8 {[%clk 0:00:05.2]} 36... Qg2 {[%clk 0:00:52]} 37. Rxf8+
{[%clk 0:00:04.7]} 37... Kxf8 {[%clk 0:00:52]} 38. Rb8+ {[%clk 0:00:03.9]} 38...
Ke7 {[%clk 0:00:50.8]} 39. Rb7+ {[%clk 0:00:02.9]} 39... Kd8 {[%clk 0:00:50.5]}
0-1

[Event "*** Titled Tuesday Blitz"]
[Site "Chess.com"]
[Date "2020.05.26"]
[Round "2"]
[White "ZarinaShafigullina"]
[Black "PauloFanha"]
[Result "1-0"]
[WhiteElo "2346"]
[BlackElo "1978"]
[TimeControl "180+1"]
[EndTime "10:17:22 PDT"]
[Termination "ZarinaShafigullina won by resignation"]

1. d4 {[%clk 0:03:00.9]} 1... d5 {[%clk 0:02:59.2]} 2. Nf3 {[%clk 0:03:01.8]}
2... c6 {[%clk 0:02:57.2]} 3. g3 {[%clk 0:03:02.7]} 3... Bf5 {[%clk 0:02:54.4]}
4. c4 {[%clk 0:03:01.8]} 4... e6 {[%clk 0:02:51]} 5. Nc3 {[%clk 0:03:01.4]} 5...
h6 {[%clk 0:02:48.9]} 6. Bg2 {[%clk 0:02:56.1]} 6... Nd7 {[%clk 0:02:46.7]} 7.
O-O {[%clk 0:02:49.5]} 7... Bd6 {[%clk 0:02:45]} 8. Nd2 {[%clk 0:02:48]} 8...
Ngf6 {[%clk 0:02:42.7]} 9. e4 {[%clk 0:02:46.3]} 9... Nxe4 {[%clk 0:02:37.1]}
10. Ndxe4 {[%clk 0:02:46]} 10... dxe4 {[%clk 0:02:31.9]} 11. Nxe4 {[%clk
0:02:45.6]} 11... Bxe4 {[%clk 0:02:29.3]} 12. Bxe4 {[%clk 0:02:44.9]} 12... O-O
{[%clk 0:02:23]} 13. Bc2 {[%clk 0:02:40.9]} 13... Re8 {[%clk 0:02:15.9]} 14. Qd3
{[%clk 0:02:38.1]} 14... Nf8 {[%clk 0:02:14.7]} 15. f4 {[%clk 0:02:37]} 15...
Qd7 {[%clk 0:02:05.9]} 16. Be3 {[%clk 0:02:31.7]} 16... Red8 {[%clk 0:01:58.1]}
17. Rad1 {[%clk 0:02:29.3]} 17... Be7 {[%clk 0:01:54.2]} 18. f5 {[%clk
0:02:21.6]} 18... exf5 {[%clk 0:01:52.2]} 19. Rxf5 {[%clk 0:02:21.1]} 19... Bf6
{[%clk 0:01:46.3]} 20. b3 {[%clk 0:01:57.1]} 20... Qd6 {[%clk 0:01:40.9]} 21. d5
{[%clk 0:01:53.8]} 21... b6 {[%clk 0:01:30.6]} 22. Rdf1 {[%clk 0:01:48.9]} 22...
cxd5 {[%clk 0:01:22.9]} 23. cxd5 {[%clk 0:01:47.2]} 23... Re8 {[%clk 0:01:14.6]}
24. Bxh6 {[%clk 0:01:37.4]} 24... Qc5+ {[%clk 0:01:02.3]} 25. Kh1 {[%clk
0:01:36.1]} 25... Rad8 {[%clk 0:00:47]} 26. Bc1 {[%clk 0:01:16.5]} 26... Re5
{[%clk 0:00:35.7]} 27. Rxe5 {[%clk 0:00:55.5]} 27... Bxe5 {[%clk 0:00:34.6]} 28.
Qf5 {[%clk 0:00:54.3]} 28... Qxd5+ {[%clk 0:00:25.7]} 29. Be4 {[%clk 0:00:54.4]}
29... Qd6 {[%clk 0:00:20.6]} 30. Qxf7+ {[%clk 0:00:52.4]} 30... Kh8 {[%clk
0:00:18.3]} 31. Bg5 {[%clk 0:00:37.6]} 31... Rc8 {[%clk 0:00:11.3]} 32. Be7
{[%clk 0:00:36.7]} 32... Qg6 {[%clk 0:00:04.9]} 33. Bxg6 {[%clk 0:00:34.7]}
33... Nxg6 {[%clk 0:00:03.8]} 1-0

[Event "*** Titled Tuesday Blitz"]
[Site "Chess.com"]
[Date "2020.05.26"]
[Round "2"]
[White "Sammed_Shete"]
[Black "AtabayevSaparmyrat"]
[Result "1-0"]
[WhiteElo "2544"]
[BlackElo "2808"]
[TimeControl "180+1"]
[EndTime "10:17:24 PDT"]
[Termination "Sammed_Shete won by resignation"]

1. e4 {[%clk 0:03:00.9]} 1... c5 {[%clk 0:02:59.4]} 2. Nf3 {[%clk 0:03:00.6]}
2... d6 {[%clk 0:02:59.7]} 3. d4 {[%clk 0:03:01]} 3... cxd4 {[%clk 0:03:00.1]}
4. Qxd4 {[%clk 0:03:01.9]} 4... Nf6 {[%clk 0:02:58.7]} 5. Be2 {[%clk 0:03:01.9]}
5... Nc6 {[%clk 0:02:58.3]} 6. Qe3 {[%clk 0:03:02.4]} 6... g6 {[%clk 0:02:54.6]}
7. h3 {[%clk 0:03:02.8]} 7... Bg7 {[%clk 0:02:54.9]} 8. O-O {[%clk 0:03:03.5]}
8... O-O {[%clk 0:02:55.1]} 9. Rd1 {[%clk 0:03:04.1]} 9... Qc7 {[%clk
0:02:39.6]} 10. c4 {[%clk 0:03:02.6]} 10... Na5 {[%clk 0:02:38.6]} 11. e5 {[%clk
0:02:43.5]} 11... dxe5 {[%clk 0:02:33.6]} 12. Nxe5 {[%clk 0:02:44.4]} 12... Be6
{[%clk 0:02:29.9]} 13. Na3 {[%clk 0:02:20.1]} 13... a6 {[%clk 0:02:17.5]} 14. b3
{[%clk 0:02:14.5]} 14... Rfd8 {[%clk 0:02:06.8]} 15. Bb2 {[%clk 0:02:13.6]}
15... Nd7 {[%clk 0:02:03.6]} 16. Nd3 {[%clk 0:01:56.3]} 16... Bxb2 {[%clk
0:02:03.6]} 17. Nxb2 {[%clk 0:01:57.2]} 17... Nc6 {[%clk 0:02:04.5]} 18. Nd3
{[%clk 0:01:54.3]} 18... Bf5 {[%clk 0:01:52.4]} 19. Nc2 {[%clk 0:01:52.4]} 19...
Nde5 {[%clk 0:01:47.9]} 20. Nxe5 {[%clk 0:01:46.4]} 20... Bxc2 {[%clk
0:01:20.5]} 21. Rxd8+ {[%clk 0:01:40.2]} 21... Rxd8 {[%clk 0:01:18.8]} 22. Nxc6
{[%clk 0:01:40.3]} 22... Qxc6 {[%clk 0:01:13.5]} 23. Bf3 {[%clk 0:01:22.4]}
23... Qc7 {[%clk 0:01:12.8]} 24. Re1 {[%clk 0:01:22.4]} 24... e6 {[%clk
0:01:04.7]} 25. Qc3 {[%clk 0:01:21.5]} 25... Bf5 {[%clk 0:01:01]} 26. c5 {[%clk
0:01:17.8]} 26... Rd3 {[%clk 0:00:56.4]} 27. Qb4 {[%clk 0:01:18.3]} 27... Rxf3
{[%clk 0:00:48.7]} 28. gxf3 {[%clk 0:01:15.9]} 28... h5 {[%clk 0:00:45.2]} 29.
Rd1 {[%clk 0:00:52.7]} 29... Bxh3 {[%clk 0:00:42.9]} 30. Qd4 {[%clk 0:00:52.2]}
30... Kh7 {[%clk 0:00:40.6]} 31. Qf6 {[%clk 0:00:50.9]} 31... Qxc5 {[%clk
0:00:14]} 32. Rd8 {[%clk 0:00:45.2]} 32... Qc1+ {[%clk 0:00:10.4]} 33. Kh2
{[%clk 0:00:45.5]} 33... Qc7+ {[%clk 0:00:10.5]} 34. Kxh3 {[%clk 0:00:45.5]}
34... Qxd8 {[%clk 0:00:10.6]} 35. Qxd8 {[%clk 0:00:46.4]} 1-0

[Event "*** Titled Tuesday Blitz"]
[Site "Chess.com"]
[Date "2020.05.26"]
[Round "2"]
[White "Olkaa"]
[Black "Xeslu"]
[Result "1-0"]
[WhiteElo "2620"]
[BlackElo "2294"]
[TimeControl "180+1"]
[EndTime "10:17:25 PDT"]
[Termination "Olkaa won by resignation"]

1. e4 {[%clk 0:03:00.9]} 1... e5 {[%clk 0:02:56.9]} 2. Nf3 {[%clk 0:03:00.4]}
2... Nc6 {[%clk 0:02:55.9]} 3. Bb5 {[%clk 0:02:58.1]} 3... a6 {[%clk 0:02:54.2]}
4. Ba4 {[%clk 0:02:57.5]} 4... Nf6 {[%clk 0:02:53.5]} 5. d4 {[%clk 0:02:56.7]}
5... exd4 {[%clk 0:02:34.1]} 6. O-O {[%clk 0:02:55.9]} 6... Be7 {[%clk
0:02:20.1]} 7. e5 {[%clk 0:02:55.9]} 7... Ne4 {[%clk 0:02:16.9]} 8. Nxd4 {[%clk
0:02:55.7]} 8... Nc5 {[%clk 0:01:59.9]} 9. Nf5 {[%clk 0:02:54.5]} 9... Ne6
{[%clk 0:01:53.5]} 10. Nc3 {[%clk 0:02:50.4]} 10... O-O {[%clk 0:01:45.5]} 11.
Nd5 {[%clk 0:02:49.4]} 11... b5 {[%clk 0:01:40.2]} 12. Bb3 {[%clk 0:02:41.4]}
12... d6 {[%clk 0:01:19.6]} 13. Qf3 {[%clk 0:01:42.2]} 13... Rb8 {[%clk
0:00:39.5]} 14. Ndxe7+ {[%clk 0:01:19.1]} 14... Nxe7 {[%clk 0:00:34.6]} 15. exd6
{[%clk 0:01:20]} 15... cxd6 {[%clk 0:00:26.2]} 16. Nxe7+ {[%clk 0:01:03.3]}
16... Qxe7 {[%clk 0:00:25.8]} 17. Be3 {[%clk 0:01:01.9]} 17... Nc5 {[%clk
0:00:25]} 18. Bd5 {[%clk 0:00:59.5]} 18... Be6 {[%clk 0:00:24.4]} 19. Rad1
{[%clk 0:00:58.2]} 19... Bxd5 {[%clk 0:00:20.1]} 20. Qxd5 {[%clk 0:00:57.7]}
20... Na4 {[%clk 0:00:19.1]} 21. Bd4 {[%clk 0:00:53.8]} 21... Qe6 {[%clk
0:00:17.6]} 22. Qg5 {[%clk 0:00:48.2]} 22... f6 {[%clk 0:00:16.9]} 23. Qg3
{[%clk 0:00:47]} 23... Qf7 {[%clk 0:00:14.3]} 24. b3 {[%clk 0:00:44]} 24... Nc5
{[%clk 0:00:13.3]} 25. Qxd6 {[%clk 0:00:43.9]} 25... Ne6 {[%clk 0:00:13.1]} 26.
Be3 {[%clk 0:00:41.8]} 26... Rbd8 {[%clk 0:00:13.1]} 27. Qxa6 {[%clk 0:00:41.7]}
27... Rxd1 {[%clk 0:00:13.4]} 28. Rxd1 {[%clk 0:00:42.5]} 28... f5 {[%clk
0:00:13.9]} 29. f3 {[%clk 0:00:36.6]} 29... f4 {[%clk 0:00:14.8]} 30. Bf2 {[%clk
0:00:36.6]} 30... Qf6 {[%clk 0:00:13.7]} 31. Qxb5 {[%clk 0:00:34.6]} 31... h6
{[%clk 0:00:12.8]} 32. Qc4 {[%clk 0:00:32.9]} 32... Kh7 {[%clk 0:00:10.9]} 33.
Re1 {[%clk 0:00:32.5]} 33... Ng5 {[%clk 0:00:10.1]} 34. h4 {[%clk 0:00:29.9]}
34... Nf7 {[%clk 0:00:09.7]} 35. a4 {[%clk 0:00:28.9]} 35... Rd8 {[%clk
0:00:08.9]} 36. a5 {[%clk 0:00:28.2]} 1-0

[Event "*** Titled Tuesday Blitz"]
[Site "Chess.com"]
[Date "2020.05.26"]
[Round "2"]
[White "novocane"]
[Black "MomchilPetkov"]
[Result "0-1"]
[WhiteElo "2201"]
[BlackElo "2535"]
[TimeControl "180+1"]
[EndTime "10:17:25 PDT"]
[Termination "MomchilPetkov won by resignation"]

1. d4 {[%clk 0:03:00.8]} 1... Nf6 {[%clk 0:02:58.8]} 2. c4 {[%clk 0:02:59.1]}
2... e6 {[%clk 0:02:59]} 3. Nc3 {[%clk 0:02:58.8]} 3... Bb4 {[%clk 0:02:57.7]}
4. e3 {[%clk 0:02:58.8]} 4... c5 {[%clk 0:02:56.6]} 5. Ne2 {[%clk 0:02:58.3]}
5... cxd4 {[%clk 0:02:53.5]} 6. exd4 {[%clk 0:02:58.5]} 6... O-O {[%clk
0:02:54.1]} 7. a3 {[%clk 0:02:57.6]} 7... Be7 {[%clk 0:02:54.5]} 8. Bf4 {[%clk
0:02:52.1]} 8... d6 {[%clk 0:02:50.7]} 9. g3 {[%clk 0:02:43.1]} 9... Nbd7 {[%clk
0:02:29]} 10. Bg2 {[%clk 0:02:40.3]} 10... e5 {[%clk 0:02:29.5]} 11. Bg5 {[%clk
0:02:31.2]} 11... h6 {[%clk 0:02:27.8]} 12. Bxf6 {[%clk 0:02:30.3]} 12... Nxf6
{[%clk 0:02:28.3]} 13. O-O {[%clk 0:02:26.4]} 13... Bg4 {[%clk 0:02:10.4]} 14.
h3 {[%clk 0:02:07.9]} 14... Bf5 {[%clk 0:02:09]} 15. b4 {[%clk 0:01:52.3]} 15...
Qc8 {[%clk 0:02:06.2]} 16. g4 {[%clk 0:01:48.7]} 16... Bh7 {[%clk 0:01:59.6]}
17. Nd5 {[%clk 0:01:43.8]} 17... Nxd5 {[%clk 0:01:58.5]} 18. Bxd5 {[%clk
0:01:43.5]} 18... Kh8 {[%clk 0:01:56.9]} 19. Rc1 {[%clk 0:01:15.8]} 19... f5
{[%clk 0:01:55]} 20. Ng3 {[%clk 0:01:15.1]} 20... Bg5 {[%clk 0:01:50.2]} 21. Rc3
{[%clk 0:00:36.3]} 21... exd4 {[%clk 0:01:46.6]} 22. Rd3 {[%clk 0:00:32.9]}
22... fxg4 {[%clk 0:01:45.4]} 23. Rxd4 {[%clk 0:00:24.9]} 23... gxh3 {[%clk
0:01:30.7]} 24. Re1 {[%clk 0:00:20.9]} 24... Bf4 {[%clk 0:01:17.4]} 25. Be6
{[%clk 0:00:19.5]} 25... Qd8 {[%clk 0:01:14.7]} 26. Bxh3 {[%clk 0:00:19.4]}
26... Qg5 {[%clk 0:01:10.2]} 27. Bg2 {[%clk 0:00:19.6]} 27... Bxg3 {[%clk
0:01:06.7]} 28. fxg3 {[%clk 0:00:20.5]} 28... Qxg3 {[%clk 0:01:07.4]} 29. Rxd6
{[%clk 0:00:20]} 29... Qf2+ {[%clk 0:01:02.4]} 30. Kh1 {[%clk 0:00:20.4]} 30...
Rf4 {[%clk 0:01:00.2]} 31. Rd8+ {[%clk 0:00:20.3]} 31... Rxd8 {[%clk 0:01:00.3]}
32. Qxd8+ {[%clk 0:00:21.2]} 32... Bg8 {[%clk 0:01:00.8]} 33. Re4 {[%clk
0:00:18.1]} 33... Rxe4 {[%clk 0:00:55.5]} 34. Bxe4 {[%clk 0:00:18.3]} 34... Qe1+
{[%clk 0:00:55.6]} 35. Kh2 {[%clk 0:00:17.3]} 35... Qxe4 {[%clk 0:00:56.1]} 36.
c5 {[%clk 0:00:17.5]} 36... Qf4+ {[%clk 0:00:53.8]} 37. Kg2 {[%clk 0:00:16.5]}
37... Qg5+ {[%clk 0:00:54]} 38. Qxg5 {[%clk 0:00:15.8]} 38... hxg5 {[%clk
0:00:54.9]} 39. Kg3 {[%clk 0:00:14]} 39... Be6 {[%clk 0:00:55.4]} 40. b5 {[%clk
0:00:14.2]} 40... Bd7 {[%clk 0:00:55.1]} 41. a4 {[%clk 0:00:14]} 41... a6 {[%clk
0:00:55.2]} 42. c6 {[%clk 0:00:13.8]} 42... Bxc6 {[%clk 0:00:55.5]} 0-1